fUST/lending_fUST_20260701
["ID","MTS","AMOUNT","RATE_DAILY","PERIOD"]
[426810196,1782858649000,-500.0,0.00029863,7]
[426810199,1782858649000,-500.0,0.00029863,7]
[426810193,1782858649000,-234.84,0.00029863,7]
[426810169,1782858649000,-500.0,0.00029863,7]
[426810200,1782858649000,-500.0,0.00029863,7]
[426810183,1782858649000,-500.0,0.00029863,7]
[426810170,1782858649000,-1095.38,0.00029863,7]
[426810152,1782858649000,-1095.38,0.00029863,7]
[426810171,1782858649000,-500.0,0.00029863,7]
[426810191,1782858649000,-500.0,0.00029863,7]
[426810146,1782858649000,-1095.38,0.00029863,7]
[426810145,1782858649000,-500.0,0.00029863,7]
[426810147,1782858649000,-500.0,0.00029863,7]
[426810149,1782858649000,-500.0,0.00029863,7]
[426810148,1782858649000,-1095.38,0.00029863,7]
[426810160,1782858649000,-1095.38,0.00029863,7]
[426810159,1782858649000,-1095.38,0.00029863,7]
[426810151,1782858649000,-500.0,0.00029863,7]
[426810158,1782858649000,-500.0,0.00029863,7]
[426810155,1782858649000,-1095.38,0.00029863,7]
[426810153,1782858649000,-500.0,0.00029863,7]
[426810150,1782858649000,-1095.38,0.00029863,7]
[426810156,1782858649000,-500.0,0.00029863,7]
[426810157,1782858649000,-500.0,0.00029863,7]
[426810154,1782858649000,-1095.38,0.00029863,7]
[426810161,1782858649000,-476.02,0.00029863,7]
[426810162,1782858649000,-1095.38,0.00029863,7]
[426810163,1782858649000,-1095.38,0.00029863,7]
[426810164,1782858649000,-1095.38,0.00029863,7]
[426810165,1782858649000,-1095.38,0.00029863,7]
[426810167,1782858649000,-500.0,0.00029863,7]
[426810168,1782858649000,-1095.38,0.00029863,7]
[426810166,1782858649000,-1095.38,0.00029863,7]
[426810174,1782858649000,-334.06,0.00029863,7]
[426810172,1782858649000,-500.0,0.00029863,7]
[426810197,1782858649000,-501.34,0.00029863,7]
[426810176,1782858649000,-1095.38,0.00029863,7]
[426810215,1782858649000,-500.0,0.00029863,7]
[426810233,1782858649000,-500.0,0.00029863,7]
[426810235,1782858649000,-500.0,0.00029863,7]
[426810238,1782858649000,-500.0,0.00029863,7]
[426810234,1782858649000,-587.33,0.00029863,7]
[426810236,1782858649000,-500.0,0.00029863,7]
[426810237,1782858649000,-196.30607844,0.00029863,7]
[426810239,1782858649000,-500.0,0.00029863,7]
[426810241,1782858649000,-512.60038022,0.00029863,7]
[426810240,1782858649000,-336.44,0.00029863,7]
[426810251,1782858649000,-1905.8,0.00029863,7]
[426810252,1782858649000,-1905.8,0.00029863,7]
[426810242,1782858649000,-1905.8,0.00029863,7]
[426810246,1782858649000,-500.0,0.00029863,7]
[426810248,1782858649000,-500.0,0.00029863,7]
[426810250,1782858649000,-1905.8,0.00029863,7]
[426810247,1782858649000,-1905.8,0.00029863,7]
[426810243,1782858649000,-1905.8,0.00029863,7]
[426810245,1782858649000,-1905.8,0.00029863,7]
[426810249,1782858649000,-1905.8,0.00029863,7]
[426810253,1782858649000,-1905.8,0.00029863,7]
[426810254,1782858649000,-1905.8,0.00029863,7]
[426810255,1782858649000,-1905.8,0.00029863,7]
[426810256,1782858649000,-1905.8,0.00029863,7]
[426810257,1782858649000,-385.72326403,0.00029863,7]
[426810195,1782858649000,-500.0,0.00029863,7]
[426810232,1782858649000,-500.0,0.00029863,7]
[426810230,1782858649000,-500.0,0.00029863,7]
[426810244,1782858649000,-500.0,0.00029863,7]
[426810225,1782858649000,-500.0,0.00029863,7]
[426810202,1782858649000,-500.0,0.00029863,7]
[426810212,1782858649000,-500.0,0.00029863,7]
[426810214,1782858649000,-500.0,0.00029863,7]
[426810216,1782858649000,-500.0,0.00029863,7]
[426810201,1782858649000,-500.0,0.00029863,7]
[426810204,1782858649000,-500.0,0.00029863,7]
[426810208,1782858649000,-500.0,0.00029863,7]
[426810213,1782858649000,-500.0,0.00029863,7]
[426810211,1782858649000,-500.0,0.00029863,7]
[426810203,1782858649000,-500.0,0.00029863,7]
[426810206,1782858649000,-304.12,0.00029863,7]
[426810205,1782858649000,-500.0,0.00029863,7]
[426810210,1782858649000,-500.0,0.00029863,7]
[426810217,1782858649000,-500.0,0.00029863,7]
[426810226,1782858649000,-500.0,0.00029863,7]
[426810228,1782858649000,-500.0,0.00029863,7]
[426810219,1782858649000,-500.0,0.00029863,7]
[426810218,1782858649000,-500.0,0.00029863,7]
[426810222,1782858649000,-500.0,0.00029863,7]
[426810227,1782858649000,-500.0,0.00029863,7]
[426810223,1782858649000,-500.0,0.00029863,7]
[426810224,1782858649000,-500.0,0.00029863,7]
[426810221,1782858649000,-500.0,0.00029863,7]
[426810220,1782858649000,-500.0,0.00029863,7]
[426810229,1782858649000,-500.0,0.00029863,7]
[426810231,1782858649000,-381.88,0.00029863,7]
[426810261,1782858650000,-502.32079725,0.00029863,7]
[426810259,1782858650000,-1905.8,0.00029863,7]
[426810260,1782858650000,-1905.8,0.00029863,7]
[426810258,1782858650000,-1520.07673597,0.00029863,7]
[426810263,1782858728000,-155.0,0.00022,2]
[426810277,1782859160000,-1180.22506432,0.00026142,2]
[426810284,1782859518000,-1240.94002733,0.00025839,2]
[426810285,1782859529000,-1240.94002733,0.00025839,2]
[426810308,1782859832000,-41.90138079,0.000261,2]
[426810309,1782859832000,-327.73364448,0.000261,2]
[426810307,1782859832000,-318.31160474,0.00025839,2]
[426810310,1782859832000,-492.62057381,0.000261,2]
[426810323,1782859838000,-5.63353107,0.00027765,2]
[426810322,1782859838000,-192.2736187,0.00027718,2]
[426810321,1782859838000,-174.88238919,0.00026741,2]
[426810318,1782859838000,-629.52940092,0.000261,2]
[426810489,1782860416000,-1937.54634938,0.00017642,2]
[426810490,1782860473000,-192.56174045,0.00017466,2]
[426810491,1782860483000,-575.43835988,0.00017466,2]
[426810492,1782860494000,-575.43835988,0.00017466,2]
[426810496,1782860506000,-437.55102276,0.00017466,2]
[426810497,1782860517000,-437.55102276,0.00017466,2]
[426810498,1782860528000,-266.45627914,0.00017466,2]
[426810499,1782860538000,-266.45627914,0.00017466,2]
[426810507,1782860852000,-2725.87,0.00017466,2]
[426810506,1782860852000,-294.0,0.00017465,2]
[426810535,1782861032000,-3914.29131307,0.00017466,2]
[426810533,1782861032000,-4726.59244855,0.00017466,2]
[426810573,1782861038000,-1085.70868693,0.00017466,2]
[426810583,1782861038000,-311.23990932,0.00021,2]
[426810574,1782861038000,-91.35170884,0.00017466,2]
[426810575,1782861038000,-4908.64829116,0.00017466,2]
[426810577,1782861038000,-500.0,0.00018,2]
[426810576,1782861038000,-151.0,0.00018,2]
[426810578,1782861038000,-500.0,0.00018,2]
[426810580,1782861038000,-500.0,0.00018,2]
[426810579,1782861038000,-500.0,0.00018,2]
[426810582,1782861038000,-445.37606349,0.00018,2]
[426810581,1782861038000,-500.0,0.00018,2]
[426810588,1782861038000,-499.02646742,0.00025839,7]
[426810594,1782861038000,-585.77781719,0.00026716,2]
[426810585,1782861038000,-157.0,0.00022,2]
[426810586,1782861038000,-572.59276827,0.0002465,2]
[426810598,1782861038000,-585.77781719,0.00026716,2]
[426810597,1782861038000,-585.77781719,0.00026716,2]
[426810596,1782861038000,-585.77781719,0.00026716,2]
[426810591,1782861038000,-220.0,0.000261,2]
[426810595,1782861038000,-278.54750688,0.00026716,2]
[426810592,1782861038000,-249.51323371,0.00026356,7]
[426810589,1782861038000,-155.21875911,0.00025858,5]
[426810590,1782861038000,-390.0,0.000261,2]
[426810587,1782861038000,-249.51323371,0.00025839,7]
[426810584,1782861038000,-5274.08921093,0.00021,2]
[426810593,1782861038000,-499.02646742,0.00026356,7]
[426810635,1782861039000,-1162.73813403,0.00028321,7]
[426810640,1782861039000,-678.771224,0.00028682,2]
[426810638,1782861039000,-1845.0,0.00028459,2]
[426810637,1782861039000,-432.94,0.00028459,2]
[426810636,1782861039000,-227.58436124,0.00028321,7]
[426810626,1782861039000,-674.3362,0.000279,2]
[426810633,1782861039000,-860.25868716,0.00028321,7]
[426810632,1782861039000,-374.0,0.00028,2]
[426810630,1782861039000,-271.0,0.00028,2]
[426810639,1782861039000,-186.0,0.00028459,2]
[426810634,1782861039000,-2218.55078376,0.00028321,7]
[426810643,1782861039000,-499.02646744,0.0002894,7]
[426810647,1782861039000,-169.0,0.00029,2]
[426810641,1782861039000,-547.0,0.000289,2]
[426810644,1782861039000,-4942.36663324,0.00028967,2]
[426810646,1782861039000,-271.0,0.00029,2]
[426810645,1782861039000,-2515.51906486,0.00029,2]
[426810631,1782861039000,-155.0,0.00028,2]
[426810648,1782861039000,-374.0,0.00029,2]
[426810649,1782861039000,-860.25868716,0.00029154,7]
[426810650,1782861039000,-2218.55078376,0.00029154,7]
[426810651,1782861039000,-1162.73813403,0.00029154,7]
[426810654,1782861039000,-1202.05,0.00029209,2]
[426810655,1782861039000,-82705.0334302,0.000295,2]
[426810652,1782861039000,-600.0,0.00029208,7]
[426810656,1782861039000,-327.0061742,0.000295,2]
[426810642,1782861039000,-249.51323372,0.0002894,7]
[426810628,1782861039000,-249.51323371,0.00027906,7]
[426810621,1782861039000,-226.67,0.00027397,2]
[426810627,1782861039000,-1920.8696,0.000279,2]
[426810600,1782861039000,-585.77781719,0.00026716,2]
[426810601,1782861039000,-585.77781719,0.00026716,2]
[426810603,1782861039000,-585.77781719,0.00026716,2]
[426810602,1782861039000,-585.77781719,0.00026716,2]
[426810605,1782861039000,-585.77781719,0.00026716,2]
[426810606,1782861039000,-585.77781719,0.00026716,2]
[426810653,1782861039000,-1202.05,0.00029209,2]
[426810604,1782861039000,-585.77781719,0.00026716,2]
[426810607,1782861039000,-585.77781719,0.00026716,2]
[426810611,1782861039000,-585.77781719,0.00026716,2]
[426810612,1782861039000,-585.77781719,0.00026716,2]
[426810609,1782861039000,-585.77781719,0.00026716,2]
[426810610,1782861039000,-585.77781719,0.00026716,2]
[426810608,1782861039000,-585.77781719,0.00026716,2]
[426810613,1782861039000,-585.77781719,0.00026716,2]
[426810617,1782861039000,-400.0,0.00026741,2]
[426810615,1782861039000,-364.39265406,0.00026717,2]
[426810614,1782861039000,-416.4487475,0.00026717,2]
[426810616,1782861039000,-650.0504668,0.00026717,2]
[426810618,1782861039000,-266.53910781,0.0002709,2]
[426810620,1782861039000,-499.02646742,0.00027131,7]
[426810619,1782861039000,-249.51323371,0.00027131,7]
[426810599,1782861039000,-585.77781719,0.00026716,2]
[426810622,1782861039000,-8504.59621323,0.00027666,2]
[426810623,1782861039000,-860.25868716,0.00027766,7]
[426810624,1782861039000,-2218.55078376,0.00027766,7]
[426810625,1782861039000,-1162.73813403,0.00027766,7]
[426810629,1782861039000,-499.02646742,0.00027906,7]
[426810657,1782861039000,-239.19390449,0.00029564,2]
[426810695,1782861039000,-462.4,0.00029863,7]
[426810660,1782861039000,-1194.77355295,0.00029564,2]
[426810690,1782861039000,-500.0,0.00029863,7]
[426810693,1782861039000,-500.0,0.00029863,7]
[426810691,1782861039000,-500.0,0.00029863,7]
[426810694,1782861039000,-500.0,0.00029863,7]
[426810696,1782861039000,-500.0,0.00029863,7]
[426810698,1782861039000,-500.0,0.00029863,7]
[426810697,1782861039000,-500.0,0.00029863,7]
[426810701,1782861039000,-500.0,0.00029863,7]
[426810699,1782861039000,-500.0,0.00029863,7]
[426810700,1782861039000,-500.0,0.00029863,7]
[426810703,1782861039000,-500.0,0.00029863,7]
[426810702,1782861039000,-500.0,0.00029863,7]
[426810692,1782861039000,-500.0,0.00029863,7]
[426810705,1782861039000,-500.0,0.00029863,7]
[426810707,1782861039000,-500.0,0.00029863,7]
[426810708,1782861039000,-486.02,0.00029863,7]
[426810704,1782861039000,-500.0,0.00029863,7]
[426810709,1782861039000,-500.0,0.00029863,7]
[426810711,1782861039000,-500.0,0.00029863,7]
[426810710,1782861039000,-500.0,0.00029863,7]
[426810713,1782861039000,-500.0,0.00029863,7]
[426810714,1782861039000,-500.0,0.00029863,7]
[426810716,1782861039000,-500.0,0.00029863,7]
[426810715,1782861039000,-500.0,0.00029863,7]
[426810717,1782861039000,-500.0,0.00029863,7]
[426810658,1782861039000,-430.54902809,0.00029564,2]
[426810706,1782861039000,-500.0,0.00029863,7]
[426810689,1782861039000,-500.0,0.00029863,7]
[426810712,1782861039000,-500.0,0.00029863,7]
[426810687,1782861039000,-500.0,0.00029863,7]
[426810661,1782861039000,-195.79536324,0.00029564,2]
[426810688,1782861039000,-500.0,0.00029863,7]
[426810662,1782861039000,-223.76612941,0.00029564,2]
[426810663,1782861039000,-188.4845351,0.00029564,2]
[426810665,1782861039000,-456.68,0.000296,2]
[426810666,1782861039000,-150.0,0.00029645,2]
[426810667,1782861039000,-150.0,0.00029645,2]
[426810668,1782861039000,-150.0,0.00029645,2]
[426810669,1782861039000,-150.0,0.000298,2]
[426810664,1782861039000,-338.93289102,0.00029564,2]
[426810671,1782861039000,-1403.47920275,0.00029863,7]
[426810670,1782861039000,-300.0,0.00029862,2]
[426810672,1782861039000,-1905.8,0.00029863,7]
[426810659,1782861039000,-765.42049438,0.00029564,2]
[426810673,1782861039000,-1905.8,0.00029863,7]
[426810674,1782861039000,-1905.8,0.00029863,7]
[426810686,1782861039000,-500.0,0.00029863,7]
[426810685,1782861039000,-500.0,0.00029863,7]
[426810681,1782861039000,-611.0405,0.00029863,7]
[426810682,1782861039000,-170.89347022,0.00029863,7]
[426810683,1782861039000,-188.32,0.00029863,7]
[426810684,1782861039000,-373.52,0.00029863,7]
[426810676,1782861039000,-1905.8,0.00029863,7]
[426810678,1782861039000,-1905.8,0.00029863,7]
[426810679,1782861039000,-1906.02,0.00029863,7]
[426810677,1782861039000,-1905.8,0.00029863,7]
[426810675,1782861039000,-1905.8,0.00029863,7]
[426810680,1782861039000,-369.56,0.00029863,7]
[426810758,1782861040000,-150.37081068,0.00029863,7]
[426810757,1782861040000,-500.0,0.00029863,7]
[426810756,1782861040000,-229.86,0.00029863,7]
[426810755,1782861040000,-500.0,0.00029863,7]
[426810753,1782861040000,-635.08,0.00029863,7]
[426810752,1782861040000,-500.0,0.00029863,7]
[426810751,1782861040000,-503.25938635,0.00029863,7]
[426810759,1782861040000,-500.0,0.00029863,7]
[426810750,1782861040000,-500.0,0.00029863,7]
[426810754,1782861040000,-500.0,0.00029863,7]
[426810761,1782861040000,-500.0,0.00029863,7]
[426810767,1782861040000,-500.0,0.00029863,7]
[426810760,1782861040000,-500.0,0.00029863,7]
[426810762,1782861040000,-386.71,0.00029863,7]
[426810764,1782861040000,-500.0,0.00029863,7]
[426810765,1782861040000,-500.0,0.00029863,7]
[426810766,1782861040000,-500.0,0.00029863,7]
[426810770,1782861040000,-500.0,0.00029863,7]
[426810771,1782861040000,-500.0,0.00029863,7]
[426810768,1782861040000,-500.0,0.00029863,7]
[426810769,1782861040000,-500.0,0.00029863,7]
[426810773,1782861040000,-384.01618554,0.00029863,7]
[426810749,1782861040000,-500.0,0.00029863,7]
[426810763,1782861040000,-500.0,0.00029863,7]
[426810747,1782861040000,-500.0,0.00029863,7]
[426810732,1782861040000,-500.0,0.00029863,7]
[426810743,1782861040000,-314.61,0.00029863,7]
[426810720,1782861040000,-500.0,0.00029863,7]
[426810718,1782861040000,-500.0,0.00029863,7]
[426810723,1782861040000,-500.0,0.00029863,7]
[426810722,1782861040000,-500.0,0.00029863,7]
[426810724,1782861040000,-631.62,0.00029863,7]
[426810721,1782861040000,-238.48139942,0.00029863,7]
[426810725,1782861040000,-518.25071731,0.00029863,7]
[426810727,1782861040000,-500.0,0.00029863,7]
[426810728,1782861040000,-500.0,0.00029863,7]
[426810726,1782861040000,-500.0,0.00029863,7]
[426810729,1782861040000,-500.0,0.00029863,7]
[426810748,1782861040000,-624.08,0.00029863,7]
[426810774,1782861040000,-297.96015255,0.00029863,7]
[426810733,1782861040000,-500.0,0.00029863,7]
[426810736,1782861040000,-500.0,0.00029863,7]
[426810737,1782861040000,-500.0,0.00029863,7]
[426810735,1782861040000,-500.0,0.00029863,7]
[426810738,1782861040000,-500.0,0.00029863,7]
[426810739,1782861040000,-500.0,0.00029863,7]
[426810741,1782861040000,-374.28,0.00029863,7]
[426810742,1782861040000,-500.0,0.00029863,7]
[426810740,1782861040000,-500.0,0.00029863,7]
[426810744,1782861040000,-500.0,0.00029863,7]
[426810745,1782861040000,-500.0,0.00029863,7]
[426810734,1782861040000,-500.0,0.00029863,7]
[426810772,1782861040000,-333.01,0.00029863,7]
[426810746,1782861040000,-302.04,0.00029863,7]
[426810776,1782861040000,-427.05953507,0.00029863,7]
[426810802,1782861040000,-500.0,0.00029863,7]
[426810807,1782861040000,-500.0,0.00029863,7]
[426810809,1782861040000,-500.0,0.00029863,7]
[426810810,1782861040000,-500.0,0.00029863,7]
[426810808,1782861040000,-500.0,0.00029863,7]
[426810811,1782861040000,-500.0,0.00029863,7]
[426810812,1782861040000,-529.55,0.00029863,7]
[426810814,1782861040000,-500.0,0.00029863,7]
[426810813,1782861040000,-500.0,0.00029863,7]
[426810817,1782861040000,-500.0,0.00029863,7]
[426810815,1782861040000,-500.0,0.00029863,7]
[426810828,1782861040000,-500.0,0.00029863,7]
[426810816,1782861040000,-500.0,0.00029863,7]
[426810819,1782861040000,-882.2939,0.00029863,7]
[426810818,1782861040000,-500.0,0.00029863,7]
[426810822,1782861040000,-500.0,0.00029863,7]
[426810821,1782861040000,-642.64,0.00029863,7]
[426810824,1782861040000,-500.0,0.00029863,7]
[426810823,1782861040000,-500.0,0.00029863,7]
[426810825,1782861040000,-208.43068422,0.00029863,7]
[426810827,1782861040000,-500.0,0.00029863,7]
[426810826,1782861040000,-291.56931578,0.00029863,7]
[426810829,1782861040000,-500.0,0.00029863,7]
[426810775,1782861040000,-500.0,0.00029863,7]
[426810820,1782861040000,-501.05124057,0.00029863,7]
[426810803,1782861040000,-500.0,0.00029863,7]
[426810805,1782861040000,-500.0,0.00029863,7]
[426810804,1782861040000,-500.0,0.00029863,7]
[426810778,1782861040000,-500.86,0.00029863,7]
[426810777,1782861040000,-500.0,0.00029863,7]
[426810780,1782861040000,-500.0,0.00029863,7]
[426810779,1782861040000,-500.0,0.00029863,7]
[426810782,1782861040000,-500.0,0.00029863,7]
[426810781,1782861040000,-500.0,0.00029863,7]
[426810783,1782861040000,-502.17115597,0.00029863,7]
[426810785,1782861040000,-500.0,0.00029863,7]
[426810806,1782861040000,-202.43539997,0.00029863,7]
[426810786,1782861040000,-500.0,0.00029863,7]
[426810788,1782861040000,-500.0,0.00029863,7]
[426810787,1782861040000,-500.0,0.00029863,7]
[426810790,1782861040000,-154.37,0.00029863,7]
[426810784,1782861040000,-500.0,0.00029863,7]
[426810791,1782861040000,-500.0,0.00029863,7]
[426810792,1782861040000,-156.46,0.00029863,7]
[426810793,1782861040000,-372.97365284,0.00029863,7]
[426810795,1782861040000,-231.15937693,0.00029863,7]
[426810794,1782861040000,-500.0,0.00029863,7]
[426810797,1782861040000,-500.0,0.00029863,7]
[426810799,1782861040000,-160.89,0.00029863,7]
[426810796,1782861040000,-500.0,0.00029863,7]
[426810798,1782861040000,-379.68,0.00029863,7]
[426810800,1782861040000,-155.91741083,0.00029863,7]
[426810789,1782861040000,-500.0,0.00029863,7]
[426810801,1782861040000,-500.0,0.00029863,7]
[426810840,1782861041000,-500.0,0.00029863,7]
[426810836,1782861041000,-500.0,0.00029863,7]
[426810838,1782861041000,-500.0,0.00029863,7]
[426810835,1782861041000,-500.0,0.00029863,7]
[426810834,1782861041000,-500.0,0.00029863,7]
[426810831,1782861041000,-500.0,0.00029863,7]
[426810830,1782861041000,-631.12,0.00029863,7]
[426810833,1782861041000,-358.64,0.00029863,7]
[426810839,1782861041000,-424.52,0.00029863,7]
[426810832,1782861041000,-500.0,0.00029863,7]
[426810842,1782861041000,-500.0,0.00029863,7]
[426810837,1782861041000,-500.0,0.00029863,7]
[426810845,1782861041000,-500.0,0.00029863,7]
[426810843,1782861041000,-249.98580269,0.00029863,7]
[426810841,1782861041000,-500.0,0.00029863,7]
[426810846,1782861041000,-500.0,0.00029863,7]
[426810847,1782861041000,-500.0,0.00029863,7]
[426810848,1782861041000,-500.0,0.00029863,7]
[426810850,1782861041000,-500.0,0.00029863,7]
[426810851,1782861041000,-500.0,0.00029863,7]
[426810849,1782861041000,-500.0,0.00029863,7]
[426810853,1782861041000,-187.06479671,0.00029863,7]
[426810852,1782861041000,-519.58,0.00029863,7]
[426810844,1782861041000,-500.0,0.00029863,7]
[426810910,1782861043000,-551.99426274,0.000291,2]
[426810908,1782861043000,-0.00184502,0.000291,2]
[426810911,1782861043000,-80.94494096,0.00029863,7]
[426810909,1782861043000,-354.54700124,0.000291,2]
[426810918,1782861046000,-447.84170144,0.00026716,2]
[426810961,1782861047000,-500.0,0.00029863,7]
[426810947,1782861047000,-359.59,0.00029863,7]
[426810950,1782861047000,-500.0,0.00029863,7]
[426810951,1782861047000,-500.0,0.00029863,7]
[426810954,1782861047000,-500.0,0.00029863,7]
[426810955,1782861047000,-500.0,0.00029863,7]
[426810957,1782861047000,-500.0,0.00029863,7]
[426810958,1782861047000,-500.0,0.00029863,7]
[426810956,1782861047000,-623.92,0.00029863,7]
[426810959,1782861047000,-234.32,0.00029863,7]
[426810960,1782861047000,-547.89,0.00029863,7]
[426810963,1782861047000,-500.0,0.00029863,7]
[426810970,1782861047000,-179.87,0.00029863,7]
[426810964,1782861047000,-500.0,0.00029863,7]
[426810966,1782861047000,-500.0,0.00029863,7]
[426810965,1782861047000,-565.42,0.00029863,7]
[426810967,1782861047000,-246.35,0.00029863,7]
[426810968,1782861047000,-500.0,0.00029863,7]
[426810969,1782861047000,-500.0,0.00029863,7]
[426810952,1782861047000,-500.0,0.00029863,7]
[426810974,1782861047000,-500.0,0.00029863,7]
[426810971,1782861047000,-500.0,0.00029863,7]
[426810972,1782861047000,-506.91550527,0.00029863,7]
[426810973,1782861047000,-500.0,0.00029863,7]
[426810976,1782861047000,-500.0,0.00029863,7]
[426810975,1782861047000,-544.97,0.00029863,7]
[426810962,1782861047000,-500.0,0.00029863,7]
[426810949,1782861047000,-500.0,0.00029863,7]
[426810935,1782861047000,-500.0,0.00029863,7]
[426810945,1782861047000,-500.0,0.00029863,7]
[426810977,1782861047000,-189.09,0.00029863,7]
[426810920,1782861047000,-500.0,0.00026716,2]
[426810919,1782861047000,-52.15829856,0.00026716,2]
[426810921,1782861047000,-500.0,0.00026716,2]
[426810922,1782861047000,-500.0,0.00026716,2]
[426810923,1782861047000,-500.0,0.00026716,2]
[426810925,1782861047000,-500.0,0.00026716,2]
[426810924,1782861047000,-500.0,0.00026716,2]
[426810926,1782861047000,-500.0,0.00026716,2]
[426810928,1782861047000,-500.0,0.00026716,2]
[426810929,1782861047000,-1043.17210026,0.00029591,2]
[426810927,1782861047000,-500.0,0.00026716,2]
[426810938,1782861047000,-469.64,0.00029863,7]
[426810931,1782861047000,-500.0,0.00029863,7]
[426810939,1782861047000,-467.34892616,0.00029863,7]
[426810930,1782861047000,-231.99026233,0.00029863,7]
[426810936,1782861047000,-500.0,0.00029863,7]
[426810932,1782861047000,-500.0,0.00029863,7]
[426810934,1782861047000,-500.0,0.00029863,7]
[426810933,1782861047000,-500.0,0.00029863,7]
[426810937,1782861047000,-500.0,0.00029863,7]
[426810942,1782861047000,-607.97598501,0.00029863,7]
[426810940,1782861047000,-500.0,0.00029863,7]
[426810941,1782861047000,-500.0,0.00029863,7]
[426810944,1782861047000,-500.0,0.00029863,7]
[426810946,1782861047000,-500.0,0.00029863,7]
[426810943,1782861047000,-500.0,0.00029863,7]
[426810948,1782861047000,-500.0,0.00029863,7]
[426810979,1782861047000,-500.0,0.00029863,7]
[426810953,1782861047000,-500.0,0.00029863,7]
[426810981,1782861047000,-640.62,0.00029863,7]
[426811007,1782861047000,-167.36,0.00029863,7]
[426811008,1782861047000,-500.0,0.00029863,7]
[426811013,1782861047000,-500.0,0.00029863,7]
[426811014,1782861047000,-196.79,0.00029863,7]
[426811015,1782861047000,-500.0,0.00029863,7]
[426811017,1782861047000,-500.0,0.00029863,7]
[426811019,1782861047000,-267.41,0.00029863,7]
[426811024,1782861047000,-500.0,0.00029863,7]
[426811016,1782861047000,-1040.1524,0.00029863,7]
[426811018,1782861047000,-500.0,0.00029863,7]
[426811025,1782861047000,-500.0,0.00029863,7]
[426811023,1782861047000,-500.0,0.00029863,7]
[426811012,1782861047000,-352.5,0.00029863,7]
[426811021,1782861047000,-500.0,0.00029863,7]
[426811027,1782861047000,-431.9,0.00029863,7]
[426811026,1782861047000,-500.0,0.00029863,7]
[426811028,1782861047000,-500.0,0.00029863,7]
[426811030,1782861047000,-500.0,0.00029863,7]
[426811029,1782861047000,-500.0,0.00029863,7]
[426811031,1782861047000,-500.0,0.00029863,7]
[426811032,1782861047000,-500.0,0.00029863,7]
[426811037,1782861047000,-500.0,0.00029863,7]
[426811036,1782861047000,-500.0,0.00029863,7]
[426811033,1782861047000,-500.0,0.00029863,7]
[426811034,1782861047000,-451.15,0.00029863,7]
[426811035,1782861047000,-500.0,0.00029863,7]
[426811022,1782861047000,-500.0,0.00029863,7]
[426811010,1782861047000,-500.0,0.00029863,7]
[426811020,1782861047000,-500.0,0.00029863,7]
[426811011,1782861047000,-500.0,0.00029863,7]
[426810980,1782861047000,-500.0,0.00029863,7]
[426810985,1782861047000,-500.0,0.00029863,7]
[426810983,1782861047000,-500.0,0.00029863,7]
[426810984,1782861047000,-396.07,0.00029863,7]
[426811006,1782861047000,-542.36765566,0.00029863,7]